[Event "MCR rapid mládeže 2023 U16"]
[Site "Harachov, Czech Republic"]
[Date "2023.09.10"]
[Round "9.18"]
[White "Rudlof, Adam"]
[Black "Bara, Jan"]
[Result "1-0"]
[TimeControl "20min+5s/move"]
[WhiteElo "1436"]
[BlackElo "1823"]

1. e4 {[%clk 00:20:07]} {[%emt 00:00:01]} c5 {[%clk 00:20:05]} {[%emt
00:00:06]} 2. Nf3 {[%clk 00:20:10]} {[%emt 00:00:02]} d6 {[%clk 00:20:10]} 3.
d4 {[%clk 00:20:14]} cxd4 4. Nxd4 {[%clk 00:20:18]} Nf6 {[%clk 00:20:19]} 5.
Nc3 {[%clk 00:20:21]} {[%emt 00:00:02]} g6 {[%clk 00:20:23]} 6. Be3 {[%clk
00:20:25]} {[%emt 00:00:02]} Bg7 {[%clk 00:20:27]} {[%emt 00:00:01]} 7. Bc4
{[%clk 00:20:30]} O-O {[%clk 00:20:30]} {[%emt 00:00:02]} 8. Bb3 {[%clk
00:20:34]} Nc6 {[%clk 00:20:28]} {[%emt 00:00:08]} 9. f3 {[%clk 00:20:36]}
{[%emt 00:00:03]} Nxd4 {[%emt 00:01:09]} 10. Bxd4 {[%clk 00:20:36]} {[%emt
00:00:03]} Be6 {[%clk 00:19:28]} {[%emt 00:00:02]} 11. Bxe6 {[%clk 00:20:33]}
{[%emt 00:00:09]} fxe6 {[%clk 00:19:32]} {[%emt 00:00:01]} 12. Qd2 {[%clk
00:20:36]} {[%emt 00:00:02]} Qa5 {[%clk 00:18:11]} {[%emt 00:01:25]} 13. O-O-O
{[%clk 00:20:07]} {[%emt 00:00:34]} b5 {[%clk 00:17:32]} {[%emt 00:00:45]} 14.
Kb1 {[%clk 00:19:51]} {[%emt 00:00:21]} b4 {[%clk 00:17:22]} {[%emt 00:00:15]}
15. Ne2 {[%clk 00:19:46]} {[%emt 00:00:08]} Qb5 {[%clk 00:16:34]} {[%emt
00:00:55]} 16. h4 {[%clk 00:17:49]} {[%emt 00:02:02]} a5 {[%clk 00:16:25]}
{[%emt 00:00:14]} 17. g4 {[%clk 00:15:44]} {[%emt 00:02:09]} a4 {[%clk
00:16:05]} {[%emt 00:00:26]} 18. h5 {[%clk 00:15:31]} {[%emt 00:00:17]} b3
{[%clk 00:16:06]} {[%emt 00:00:03]} 19. cxb3 {[%clk 00:15:28]} {[%emt
00:00:09]} axb3 {[%clk 00:16:10]} {[%emt 00:00:01]} 20. a3 {[%clk 00:15:32]}
Rfc8 {[%clk 00:07:35]} {[%emt 00:08:40]} 21. Nc3 {[%clk 00:15:09]} {[%emt
00:00:27]} Qc4 {[%clk 00:07:35]} {[%emt 00:00:05]} 22. hxg6 {[%clk 00:15:03]}
{[%emt 00:00:11]} hxg6 {[%clk 00:07:24]} {[%emt 00:00:16]} 23. g5 {[%clk
00:11:47]} {[%emt 00:03:22]} Nh5 {[%clk 00:06:28]} {[%emt 00:01:01]} 24. Bxg7
{[%emt 00:00:10]} Kxg7 {[%clk 00:06:10]} {[%emt 00:00:23]} 25. Rc1 {[%clk
00:08:59]} {[%emt 00:02:47]} Qa6 {[%clk 00:04:21]} {[%emt 00:01:55]} 26. f4
{[%clk 00:07:06]} {[%emt 00:01:55]} Rc4 {[%clk 00:01:26]} {[%emt 00:03:04]} 27.
Qe3 {[%clk 00:04:46]} {[%emt 00:02:20]} Qa7 {[%clk 00:01:09]} {[%emt 00:00:26]}
28. Qd2 {[%clk 00:02:48]} {[%emt 00:01:56]} Qd4 {[%clk 00:01:05]} {[%emt
00:00:15]} 29. Qxd4+ {[%clk 00:02:17]} {[%emt 00:00:37]} Rxd4 {[%clk 00:01:09]}
{[%emt 00:00:01]} 30. f5 {[%clk 00:02:06]} {[%emt 00:00:15]} exf5 {[%clk
00:00:55]} {[%emt 00:00:20]} 31. exf5 {[%clk 00:02:10]} {[%emt 00:00:02]} Ng3
{[%clk 00:00:33]} {[%emt 00:00:27]} 32. Nb5 {[%clk 00:01:04]} {[%emt 00:01:10]}
Rf4 {[%clk 00:00:25]} {[%emt 00:00:11]} 33. Rhg1 {[%clk 00:00:55]} {[%emt
00:00:16]} Rxf5 {[%clk 00:00:15]} {[%emt 00:00:15]} 34. Nc7 {[%clk 00:00:53]}
{[%emt 00:00:07]} Raa5 {[%clk 00:00:09]} {[%emt 00:00:10]} 35. Rxg3 {[%clk
00:00:54]} {[%emt 00:00:05]} Kf7 {[%clk 00:00:13]} 36. Rxb3 {[%clk 00:00:55]}
{[%emt 00:00:05]} Rxg5 {[%clk 00:00:18]} {[%emt 00:00:01]} 37. Re3 {[%clk
00:00:44]} {[%emt 00:00:15]} Rae5 {[%clk 00:00:12]} {[%emt 00:00:10]} 38. Rf1+
{[%clk 00:00:42]} {[%emt 00:00:07]} Kg8 {[%clk 00:00:09]} {[%emt 00:00:09]} 39.
Ref3 {[%clk 00:00:33]} {[%emt 00:00:13]} Kh7 {[%clk 00:00:12]} {[%emt
00:00:03]} 40. Rf7+ {[%clk 00:00:30]} {[%emt 00:00:08]} Kh6 {[%clk 00:00:17]}
{[%emt 00:00:01]} 41. b4 {[%clk 00:00:29]} {[%emt 00:00:06]} Rg2 {[%clk
00:00:16]} {[%emt 00:00:05]} 42. R7f2 {[%clk 00:00:18]} {[%emt 00:00:17]} Rg3
{[%clk 00:00:17]} {[%emt 00:00:02]} 43. Rf3 {[%clk 00:00:20]} {[%emt 00:00:04]}
Rg2 {[%clk 00:00:19]} {[%emt 00:00:02]} 44. R1f2 {[%clk 00:00:22]} {[%emt
00:00:04]} Re1+ {[%clk 00:00:16]} {[%emt 00:00:07]} 45. Kb2 {[%clk 00:00:23]}
{[%emt 00:00:05]} Re2+ {[%clk 00:00:20]} {[%emt 00:00:01]} 46. Rxe2 Rxe2+
{[%clk 00:00:24]} 47. Kb3 {[%clk 00:00:30]} g5 {[%clk 00:00:27]} {[%emt
00:00:03]} 48. b5 {[%clk 00:00:34]} {[%emt 00:00:01]} g4 {[%clk 00:00:31]}
{[%emt 00:00:01]} 49. Rf8 {[%clk 00:00:23]} {[%emt 00:00:16]} g3 {[%clk
00:00:26]} {[%emt 00:00:10]} 50. b6 {[%clk 00:00:20]} {[%emt 00:00:08]} Re1
{[%clk 00:00:22]} {[%emt 00:00:09]} 51. Rg8 {[%clk 00:00:09]} {[%emt 00:00:16]}
Rb1+ {[%clk 00:00:25]} {[%emt 00:00:03]} 52. Kc4 {[%clk 00:00:13]} {[%emt
00:00:01]} Rxb6 {[%clk 00:00:28]} {[%emt 00:00:01]} 53. Rxg3 Rc6+ 54. Kb5
{[%clk 00:00:18]} {[%emt 00:00:04]} Rxc7 {[%clk 00:00:37]} {[%emt 00:00:01]} 55.
a4 {[%clk 00:00:22]} e5 {[%emt 00:00:10]} 56. a5 d5 {[%clk 00:00:34]} {[%emt
00:00:03]} 57. a6 {[%emt 00:00:01]} Rc1 {[%clk 00:00:35]} {[%emt 00:00:04]} 58.
Ra3 {[%clk 00:00:34]} {[%emt 00:00:03]} Rc8 {[%clk 00:00:34]} {[%emt 00:00:05]}
59. a7 {[%clk 00:00:37]} {[%emt 00:00:02]} Ra8 {[%emt 00:00:07]} 60. Kb6 {[%clk
00:00:27]} {[%emt 00:00:09]} d4 {[%clk 00:00:41]} {[%emt 00:00:02]} 61. Kb7
{[%clk 00:00:30]} {[%emt 00:00:01]} Rg8 {[%clk 00:00:44]} {[%emt 00:00:01]} 62.
a8=Q {[%clk 00:00:33]} {[%emt 00:00:03]} Rxa8 {[%clk 00:00:48]} {[%emt
00:00:02]} 63. Rxa8 {[%clk 00:00:36]} {[%emt 00:00:02]} Kg5 {[%clk 00:00:48]}
{[%emt 00:00:04]} 64. Kc6 {[%clk 00:00:38]} {[%emt 00:00:02]} d3 {[%clk
00:00:48]} {[%emt 00:00:06]} 65. Kd5 {[%clk 00:00:19]} {[%emt 00:00:24]} Kf4
{[%clk 00:00:51]} {[%emt 00:00:02]} 66. Kc4 {[%clk 00:00:14]} {[%emt 00:00:10]}
e4 {[%clk 00:00:52]} {[%emt 00:00:04]} 67. Ra2 {[%clk 00:00:11]} {[%emt
00:00:07]} Ke3 {[%clk 00:00:45]} {[%emt 00:00:10]} 68. Kc3 {[%clk 00:00:15]}
{[%emt 00:00:04]} Kf3 {[%clk 00:00:50]} 69. Kd4 {[%clk 00:00:09]} {[%emt
00:00:11]} Kf4 {[%clk 00:00:53]} {[%emt 00:00:02]} 70. Rh2 {[%clk 00:00:10]}
{[%emt 00:00:04]} Kf3 {[%clk 00:00:53]} {[%emt 00:00:03]} 71. Kc3 {[%clk
00:00:11]} {[%emt 00:00:05]} Ke3 {[%clk 00:00:54]} {[%emt 00:00:03]} 72. Ra2
{[%clk 00:00:08]} {[%emt 00:00:10]} Kf3 {[%clk 00:00:57]} {[%emt 00:00:01]} 73.
Kd2 {[%clk 00:00:12]} {[%emt 00:00:01]} Kf4 {[%clk 00:01:00]} {[%emt 00:00:02]}
74. Ra1 {[%clk 00:00:16]} {[%emt 00:00:03]} Ke5 {[%clk 00:01:01]} {[%emt
00:00:02]} 75. Re1 {[%clk 00:00:19]} {[%emt 00:00:02]} Kd4 {[%clk 00:01:06]} 76.
Re3 {[%clk 00:00:16]} {[%emt 00:00:08]} Ke5 {[%clk 00:01:07]} {[%emt 00:00:04]}
77. Rh3 {[%clk 00:00:15]} {[%emt 00:00:06]} Kd4 {[%clk 00:01:09]} {[%emt
00:00:02]} 78. Rg3 {[%emt 00:00:05]} Kc4 {[%clk 00:01:11]} {[%emt 00:00:01]} 79.
Ke3 {[%clk 00:00:19]} {[%emt 00:00:04]} Kc3 {[%clk 00:01:15]} {[%emt 00:00:01]}
80. Rg2 {[%clk 00:00:23]} Kb3 {[%clk 00:00:44]} {[%emt 00:00:37]} 81. Kxe4
{[%clk 00:00:26]} {[%emt 00:00:02]} Kc3 {[%clk 00:00:48]} 82. Ke3 {[%clk
00:00:29]} {[%emt 00:00:02]} 1-0

[Event "MCR rapid mládeže 2023 U16"]
[Site "Harachov, Czech Republic"]
[Date "2023.09.10"]
[Round "9.19"]
[White "Honcharov, Makar"]
[Black "Kozdon, Marek"]
[Result "0-1"]
[TimeControl "20min+5s/move"]
[WhiteElo "1593"]
[BlackElo "1548"]

1. e4 {[%clk 00:20:09]} c5 {[%clk 00:19:58]} {[%emt 00:00:12]} 2. Nf3 {[%clk
00:20:02]} e6 {[%clk 00:20:01]} {[%emt 00:00:13]} 3. d4 {[%clk 00:20:06]}
{[%emt 00:00:01]} cxd4 4. Nxd4 {[%clk 00:20:10]} a6 {[%clk 00:20:09]} {[%emt
00:00:01]} 5. Bd3 {[%clk 00:20:14]} Qc7 {[%clk 00:20:11]} {[%emt 00:00:04]} 6.
O-O {[%clk 00:20:17]} {[%emt 00:00:02]} d6 {[%clk 00:20:15]} {[%emt 00:00:01]}
7. Nc3 {[%clk 00:20:16]} {[%emt 00:00:06]} b5 {[%clk 00:20:18]} {[%emt
00:00:02]} 8. f4 {[%clk 00:20:17]} {[%emt 00:00:04]} Bb7 {[%clk 00:20:21]}
{[%emt 00:00:02]} 9. Be3 {[%clk 00:20:16]} {[%emt 00:00:06]} Nd7 {[%clk
00:20:20]} {[%emt 00:00:07]} 10. Qe2 {[%clk 00:20:15]} {[%emt 00:00:05]} Ngf6
{[%clk 00:20:18]} {[%emt 00:00:06]} 11. a3 {[%clk 00:20:15]} {[%emt 00:00:06]}
Nc5 {[%clk 00:20:18]} {[%emt 00:00:04]} 12. Rac1 {[%clk 00:20:03]} {[%emt
00:00:17]} Nfxe4 {[%clk 00:19:57]} {[%emt 00:00:26]} 13. Nxe4 {[%clk 00:20:05]}
{[%emt 00:00:04]} Nxe4 {[%clk 00:19:52]} {[%emt 00:00:10]} 14. f5 {[%clk
00:20:07]} {[%emt 00:00:02]} e5 {[%clk 00:19:49]} {[%emt 00:00:09]} 15. Nf3
{[%clk 00:18:25]} {[%emt 00:01:47]} Nf6 {[%clk 00:19:30]} {[%emt 00:00:24]} 16.
c4 {[%clk 00:18:16]} {[%emt 00:00:14]} bxc4 {[%clk 00:18:58]} {[%emt 00:00:37]}
17. Bxc4 {[%clk 00:18:10]} {[%emt 00:00:11]} Qd7 {[%clk 00:18:55]} {[%emt
00:00:07]} 18. Nxe5 {[%clk 00:15:34]} {[%emt 00:02:41]} dxe5 {[%clk 00:17:45]}
{[%emt 00:01:16]} 19. Rfd1 {[%clk 00:15:36]} {[%emt 00:00:02]} Bd6 {[%clk
00:13:29]} {[%emt 00:04:22]} 20. Kh1 {[%clk 00:11:33]} {[%emt 00:04:07]} O-O
{[%clk 00:12:44]} {[%emt 00:00:50]} 21. Rxd6 {[%clk 00:08:06]} {[%emt
00:03:32]} Qxd6 {[%clk 00:12:15]} {[%emt 00:00:34]} 22. Bc5 {[%clk 00:08:05]}
{[%emt 00:00:06]} Qd7 {[%clk 00:11:11]} {[%emt 00:01:09]} 23. Bxf8 {[%clk
00:07:35]} {[%emt 00:00:35]} Rxf8 {[%clk 00:09:35]} {[%emt 00:01:41]} 24. Qxe5
{[%clk 00:07:24]} {[%emt 00:00:16]} Re8 {[%clk 00:08:57]} {[%emt 00:00:43]} 25.
Qf4 {[%clk 00:05:04]} {[%emt 00:02:24]} h6 {[%clk 00:07:08]} {[%emt 00:01:55]}
26. h4 {[%clk 00:04:23]} {[%emt 00:00:47]} Nh5 {[%clk 00:06:03]} {[%emt
00:01:09]} 27. Qg4 {[%clk 00:03:54]} {[%emt 00:00:34]} Qd2 {[%clk 00:04:12]}
{[%emt 00:01:56]} 28. Rg1 {[%clk 00:02:52]} {[%emt 00:01:07]} Nf6 {[%clk
00:03:23]} {[%emt 00:00:54]} 29. Qg3 {[%clk 00:00:11]} {[%emt 00:02:46]} Qe3
{[%clk 00:03:14]} {[%emt 00:00:14]} 30. Qc7 {[%clk 00:00:09]} {[%emt 00:00:07]}
Qh3+ {[%clk 00:03:13]} {[%emt 00:00:07]} 31. Qh2 {[%clk 00:00:07]} {[%emt
00:00:06]} Qxh2+ {[%clk 00:02:31]} {[%emt 00:00:47]} 32. Kxh2 {[%clk 00:00:11]}
{[%emt 00:00:01]} Re3 {[%clk 00:02:22]} {[%emt 00:00:14]} 33. Rd1 {[%clk
00:00:10]} {[%emt 00:00:05]} Re4 {[%clk 00:01:54]} {[%emt 00:00:35]} 34. Rd8+
{[%clk 00:00:09]} {[%emt 00:00:06]} Kh7 {[%clk 00:01:57]} {[%emt 00:00:01]} 35.
Bxf7 {[%clk 00:00:12]} {[%emt 00:00:01]} Rxh4+ {[%clk 00:01:40]} {[%emt
00:00:23]} 36. Kg3 {[%clk 00:00:16]} {[%emt 00:00:01]} Rg4+ {[%clk 00:01:43]}
{[%emt 00:00:02]} 37. Kf3 {[%clk 00:00:00]} {[%emt 00:00:16]} 0-1

[Event "MCR rapid mládeže 2023 U16"]
[Site "Harachov, Czech Republic"]
[Date "2023.09.10"]
[Round "9.20"]
[White "Frantsev, Iegor"]
[Black "Policar, Martin"]
[Result "0-1"]
[TimeControl "20min+5s/move"]
[WhiteElo "1431"]
[BlackElo "1517"]

1. e4 {[%clk 00:20:02]} {[%emt 00:00:07]} c5 {[%clk 00:20:05]} {[%emt
00:00:05]} 2. Nc3 {[%clk 00:20:05]} {[%emt 00:00:02]} d6 {[%clk 00:20:09]}
{[%emt 00:00:02]} 3. f4 {[%clk 00:20:09]} {[%emt 00:00:01]} Nc6 {[%clk
00:20:06]} {[%emt 00:00:08]} 4. Nf3 {[%clk 00:20:10]} {[%emt 00:00:04]} Nf6
{[%clk 00:20:02]} {[%emt 00:00:09]} 5. Bb5 {[%clk 00:20:13]} {[%emt 00:00:02]}
g6 {[%clk 00:19:53]} {[%emt 00:00:14]} 6. d3 {[%clk 00:20:14]} {[%emt
00:00:03]} Bg7 {[%clk 00:19:56]} {[%emt 00:00:02]} 7. O-O {[%clk 00:20:17]}
{[%emt 00:00:03]} O-O {[%clk 00:19:52]} {[%emt 00:00:09]} 8. Qe1 {[%clk
00:20:20]} {[%emt 00:00:02]} Nd7 {[%clk 00:19:19]} {[%emt 00:00:37]} 9. Qg3
{[%clk 00:20:06]} {[%emt 00:00:19]} Nd4 {[%clk 00:18:43]} {[%emt 00:00:42]} 10.
Nxd4 {[%clk 00:19:47]} {[%emt 00:00:23]} Bxd4+ {[%clk 00:18:30]} {[%emt
00:00:19]} 11. Be3 {[%clk 00:19:00]} {[%emt 00:00:51]} Bxe3+ {[%clk 00:18:06]}
{[%emt 00:00:29]} 12. Qxe3 {[%clk 00:19:00]} {[%emt 00:00:05]} a6 {[%clk
00:18:07]} {[%emt 00:00:06]} 13. Bxd7 {[%clk 00:18:55]} {[%emt 00:00:09]} Bxd7
{[%clk 00:18:00]} {[%emt 00:00:12]} 14. Rf3 {[%clk 00:18:13]} {[%emt 00:00:45]}
f5 {[%clk 00:16:54]} {[%emt 00:01:13]} 15. Re1 {[%clk 00:16:20]} {[%emt
00:01:57]} e6 {[%clk 00:14:44]} {[%emt 00:02:16]} 16. e5 {[%clk 00:13:39]}
{[%emt 00:02:46]} Qb6 {[%clk 00:12:54]} {[%emt 00:01:55]} 17. b3 {[%clk
00:12:27]} {[%emt 00:01:15]} d5 {[%clk 00:12:38]} {[%emt 00:00:23]} 18. Rg3
{[%clk 00:09:22]} {[%emt 00:03:10]} d4 {[%clk 00:11:52]} {[%emt 00:00:50]} 19.
Nd5 {[%clk 00:09:06]} {[%emt 00:00:22]} exd5 {[%clk 00:11:47]} {[%emt
00:00:10]} 20. Qf3 {[%clk 00:09:07]} {[%emt 00:00:03]} Qe6 {[%clk 00:10:32]}
{[%emt 00:01:21]} 21. h4 {[%clk 00:09:04]} {[%emt 00:00:07]} Kh8 {[%clk
00:09:34]} {[%emt 00:01:03]} 22. h5 {[%clk 00:08:41]} {[%emt 00:00:29]} Rg8
{[%clk 00:08:54]} {[%emt 00:00:45]} 23. Rh3 {[%clk 00:08:22]} {[%emt 00:00:23]}
g5 {[%clk 00:08:30]} {[%emt 00:00:30]} 24. fxg5 {[%clk 00:06:54]} {[%emt
00:01:33]} Rxg5 {[%clk 00:08:31]} {[%emt 00:00:03]} 25. Qf4 {[%clk 00:05:47]}
{[%emt 00:01:12]} Rag8 {[%clk 00:08:22]} {[%emt 00:00:14]} 26. Rh2 {[%clk
00:05:15]} {[%emt 00:00:38]} h6 {[%clk 00:06:44]} {[%emt 00:01:43]} 27. Kf1
{[%clk 00:03:39]} {[%emt 00:01:40]} Kh7 {[%clk 00:05:52]} {[%emt 00:00:58]} 28.
Qf3 {[%clk 00:02:44]} {[%emt 00:01:00]} Rg3 {[%clk 00:05:19]} {[%emt 00:00:38]}
29. Qf2 {[%clk 00:01:49]} {[%emt 00:01:00]} R8g5 {[%clk 00:02:58]} {[%emt
00:02:25]} 30. Ke2 {[%clk 00:00:26]} {[%emt 00:01:28]} Re3+ {[%clk 00:02:07]}
{[%emt 00:00:56]} 31. Kd2 {[%clk 00:00:23]} {[%emt 00:00:08]} Qxe5 {[%clk
00:01:52]} {[%emt 00:00:21]} 32. Kd1 {[%emt 00:00:37]} 0-1

[Event "MCR rapid mládeže 2023 U16"]
[Site "Harachov, Czech Republic"]
[Date "2023.09.10"]
[Round "9.21"]
[White "Chernyy, Andrey"]
[Black "Vlcek, Vitezslav"]
[Result "1-0"]
[TimeControl "20min+5s/move"]
[WhiteElo "1582"]
[BlackElo "1160"]

1. e4 {[%clk 00:20:08]} {[%emt 00:00:01]} c5 {[%clk 00:20:09]} {[%emt
00:00:01]} 2. Nf3 {[%clk 00:20:11]} {[%emt 00:00:02]} d6 {[%clk 00:20:10]}
{[%emt 00:00:04]} 3. Nc3 {[%clk 00:20:14]} {[%emt 00:00:03]} Nf6 {[%clk
00:20:12]} {[%emt 00:00:02]} 4. d4 {[%clk 00:20:18]} {[%emt 00:00:02]} cxd4
{[%clk 00:20:12]} {[%emt 00:00:05]} 5. Qxd4 {[%clk 00:20:21]} {[%emt 00:00:02]}
Nc6 {[%clk 00:20:12]} {[%emt 00:00:05]} 6. Bb5 {[%clk 00:20:24]} {[%emt
00:00:02]} Bd7 {[%clk 00:20:09]} {[%emt 00:00:07]} 7. Bxc6 {[%clk 00:20:26]}
{[%emt 00:00:04]} bxc6 {[%clk 00:20:03]} {[%emt 00:00:11]} 8. Bg5 {[%clk
00:20:27]} {[%emt 00:00:04]} c5 {[%clk 00:19:54]} {[%emt 00:00:13]} 9. Qd3
{[%clk 00:20:17]} {[%emt 00:00:14]} Bc6 {[%clk 00:19:12]} {[%emt 00:00:49]} 10.
O-O {[%clk 00:19:26]} {[%emt 00:00:55]} g6 {[%clk 00:16:54]} {[%emt 00:02:23]}
11. Nd5 {[%clk 00:17:28]} {[%emt 00:02:04]} Bxd5 {[%clk 00:15:23]} {[%emt
00:01:36]} 12. Bxf6 {[%clk 00:16:34]} {[%emt 00:00:59]} exf6 {[%clk 00:13:35]}
{[%emt 00:01:52]} 13. exd5 {[%clk 00:16:18]} {[%emt 00:00:22]} Be7 {[%clk
00:12:58]} {[%emt 00:00:41]} 14. Rfe1 {[%clk 00:15:06]} {[%emt 00:01:18]} O-O
{[%clk 00:12:59]} {[%emt 00:00:04]} 15. a3 {[%clk 00:14:53]} {[%emt 00:00:17]}
f5 {[%clk 00:12:50]} {[%emt 00:00:15]} 16. b4 {[%clk 00:14:44]} {[%emt
00:00:14]} cxb4 {[%clk 00:11:53]} {[%emt 00:01:01]} 17. axb4 {[%clk 00:14:48]}
{[%emt 00:00:01]} Bf6 {[%clk 00:11:49]} {[%emt 00:00:09]} 18. Ra3 {[%clk
00:14:30]} {[%emt 00:00:23]} Qc7 {[%clk 00:11:01]} {[%emt 00:00:53]} 19. c3
{[%clk 00:13:31]} {[%emt 00:01:04]} Rfe8 {[%clk 00:10:58]} {[%emt 00:00:08]} 20.
Rea1 {[%clk 00:13:05]} {[%emt 00:00:31]} Qb6 {[%clk 00:09:56]} {[%emt
00:01:06]} 21. Ra6 {[%clk 00:12:35]} {[%emt 00:00:35]} Qc7 {[%clk 00:09:54]}
{[%emt 00:00:07]} 22. Nd4 {[%clk 00:12:17]} {[%emt 00:00:23]} Bxd4 {[%clk
00:08:09]} {[%emt 00:01:50]} 23. Qxd4 {[%clk 00:12:20]} {[%emt 00:00:03]} Qd7
{[%clk 00:06:03]} {[%emt 00:02:11]} 24. h3 {[%clk 00:12:07]} {[%emt 00:00:16]}
Re7 {[%clk 00:05:48]} {[%emt 00:00:21]} 25. Qf6 {[%clk 00:11:38]} {[%emt
00:00:34]} Rd8 {[%clk 00:04:55]} {[%emt 00:00:59]} 26. Rxa7 {[%clk 00:11:23]}
{[%emt 00:00:20]} 1-0

[Event "MCR rapid mládeže 2023 U16"]
[Site "Harachov, Czech Republic"]
[Date "2023.09.10"]
[Round "9.22"]
[White "Krivka, Matej"]
[Black "Zrust, Lukas"]
[Result "0-1"]
[TimeControl "20min+5s/move"]
[WhiteElo "1552"]
[BlackElo "1519"]

1. e4 {[%clk 00:20:08]} {[%emt 00:00:02]} e6 {[%clk 00:20:09]} {[%emt
00:00:02]} 2. d4 {[%clk 00:20:10]} {[%emt 00:00:03]} d5 {[%clk 00:20:13]}
{[%emt 00:00:01]} 3. Nc3 {[%clk 00:20:09]} {[%emt 00:00:05]} Nf6 {[%clk
00:20:17]} {[%emt 00:00:03]} 4. Bg5 {[%clk 00:20:01]} {[%emt 00:00:11]} Be7
{[%clk 00:20:13]} {[%emt 00:00:09]} 5. Bxf6 {[%clk 00:19:38]} {[%emt 00:00:29]}
Bxf6 {[%clk 00:20:11]} {[%emt 00:00:07]} 6. e5 {[%clk 00:19:41]} {[%emt
00:00:02]} Be7 {[%clk 00:20:11]} {[%emt 00:00:04]} 7. Qg4 {[%clk 00:19:33]}
{[%emt 00:00:13]} O-O {[%clk 00:19:32]} {[%emt 00:00:45]} 8. Bd3 {[%clk
00:18:58]} {[%emt 00:00:39]} f5 {[%clk 00:19:29]} {[%emt 00:00:08]} 9. Qg3
{[%clk 00:17:35]} {[%emt 00:01:28]} Bd7 {[%clk 00:17:54]} {[%emt 00:01:40]} 10.
Nge2 {[%clk 00:16:07]} {[%emt 00:01:34]} c5 {[%clk 00:17:02]} {[%emt 00:00:57]}
11. dxc5 {[%clk 00:14:27]} {[%emt 00:01:44]} Bxc5 {[%clk 00:17:05]} {[%emt
00:00:02]} 12. Nf4 {[%clk 00:13:10]} {[%emt 00:01:22]} Be7 {[%clk 00:14:10]}
{[%emt 00:03:00]} 13. O-O {[%clk 00:07:50]} {[%emt 00:05:25]} Bh4 {[%clk
00:11:33]} {[%emt 00:02:42]} 14. Qf3 {[%clk 00:05:57]} {[%emt 00:01:58]} Nc6
{[%clk 00:10:44]} {[%emt 00:00:54]} 15. Rae1 {[%clk 00:04:17]} {[%emt
00:01:46]} a6 {[%clk 00:07:52]} {[%emt 00:02:58]} 16. g3 {[%clk 00:02:08]}
{[%emt 00:02:13]} Be7 {[%clk 00:07:55]} {[%emt 00:00:01]} 17. Nce2 {[%clk
00:01:47]} {[%emt 00:00:26]} b5 {[%clk 00:07:50]} {[%emt 00:00:10]} 18. c3
{[%clk 00:01:32]} {[%emt 00:00:20]} Nxe5 {[%clk 00:07:40]} {[%emt 00:00:15]} 19.
Qe3 {[%clk 00:01:16]} {[%emt 00:00:20]} Ng4 {[%clk 00:06:45]} {[%emt 00:01:02]}
20. Qd2 {[%clk 00:01:16]} {[%emt 00:00:04]} Ne5 {[%clk 00:06:34]} {[%emt
00:00:17]} 21. Nd4 {[%clk 00:00:59]} {[%emt 00:00:21]} Bf6 {[%clk 00:05:02]}
{[%emt 00:01:37]} 22. Nh5 {[%clk 00:00:38]} {[%emt 00:00:27]} Bg5 {[%clk
00:04:55]} {[%emt 00:00:12]} 23. f4 {[%clk 00:00:39]} {[%emt 00:00:04]} Nxd3
{[%clk 00:04:18]} {[%emt 00:00:42]} 24. Qxd3 {[%clk 00:00:41]} {[%emt
00:00:03]} Be7 {[%clk 00:03:23]} {[%emt 00:01:00]} 25. g4 {[%clk 00:00:23]}
{[%emt 00:00:23]} fxg4 {[%clk 00:03:19]} {[%emt 00:00:09]} 26. Nxe6 {[%clk
00:00:26]} {[%emt 00:00:02]} Qb6+ {[%clk 00:03:10]} {[%emt 00:00:13]} 27. Qd4
{[%clk 00:00:22]} {[%emt 00:00:09]} Qxd4+ {[%clk 00:02:12]} {[%emt 00:01:04]}
28. Nxd4 {[%clk 00:00:26]} Bc5 {[%clk 00:02:03]} {[%emt 00:00:14]} 29. Re5
{[%clk 00:00:23]} {[%emt 00:00:07]} Rf5 {[%clk 00:01:18]} {[%emt 00:00:50]} 30.
Rxf5 {[%clk 00:00:24]} {[%emt 00:00:04]} Bxf5 {[%clk 00:01:21]} {[%emt
00:00:02]} 31. Ng3 {[%clk 00:00:27]} {[%emt 00:00:02]} Bd7 {[%clk 00:01:21]}
{[%emt 00:00:05]} 32. Rd1 {[%clk 00:00:22]} {[%emt 00:00:09]} Kf7 {[%clk
00:01:11]} {[%emt 00:00:15]} 33. Kg2 {[%clk 00:00:26]} {[%emt 00:00:02]} g6
{[%clk 00:01:01]} {[%emt 00:00:16]} 34. Nb3 {[%clk 00:00:28]} {[%emt 00:00:02]}
Rc8 {[%clk 00:00:55]} {[%emt 00:00:10]} 35. Rxd5 {[%clk 00:00:27]} {[%emt
00:00:06]} Bc6 {[%clk 00:01:00]} 36. Nxc5 {[%clk 00:00:25]} {[%emt 00:00:08]}
Bxd5+ {[%clk 00:01:03]} {[%emt 00:00:01]} 37. Nce4 {[%clk 00:00:28]} {[%emt
00:00:02]} Re8 {[%clk 00:01:04]} {[%emt 00:00:04]} 38. Kf2 {[%clk 00:00:07]}
{[%emt 00:00:26]} Bxe4 {[%clk 00:01:07]} {[%emt 00:00:03]} 39. Nxe4 {[%clk
00:00:11]} {[%emt 00:00:01]} Rxe4 {[%clk 00:01:11]} {[%emt 00:00:01]} 0-1